[Event "*** Titled Tuesday Blitz"]
[Site "Chess.com"]
[Date "2020.11.24"]
[Round "7"]
[White "AvitalBor"]
[Black "GukeshDommaraju"]
[Result "0-1"]
[WhiteElo "2687"]
[BlackElo "2894"]
[TimeControl "180+1"]
[EndTime "11:35:31 PST"]
[Termination "GukeshDommaraju won by resignation"]

1. e4 {[%clk 0:03:00.9]} 1... c6 {[%clk 0:03:00.4]} 2. d4 {[%clk 0:03:00.4]}
2... d5 {[%clk 0:03:00.9]} 3. e5 {[%clk 0:03:01]} 3... Bf5 {[%clk 0:03:00.6]} 4.
Nf3 {[%clk 0:03:01.6]} 4... e6 {[%clk 0:03:01.1]} 5. Be2 {[%clk 0:03:02]} 5...
c5 {[%clk 0:03:01.6]} 6. O-O {[%clk 0:02:59.7]} 6... Nc6 {[%clk 0:03:02]} 7. c4
{[%clk 0:02:58.4]} 7... dxc4 {[%clk 0:02:55.9]} 8. Be3 {[%clk 0:02:58]} 8...
Nge7 {[%clk 0:02:45.5]} 9. Na3 {[%clk 0:02:52.8]} 9... cxd4 {[%clk 0:02:40.9]}
10. Nxd4 {[%clk 0:02:51.7]} 10... Nxd4 {[%clk 0:02:40.9]} 11. Bxd4 {[%clk
0:02:48]} 11... Nc6 {[%clk 0:02:40.8]} 12. Bc3 {[%clk 0:02:43.5]} 12... Bxa3
{[%clk 0:02:35.6]} 13. bxa3 {[%clk 0:02:44.4]} 13... Bd3 {[%clk 0:02:31]} 14.
Bxd3 {[%clk 0:02:41.2]} 14... Qxd3 {[%clk 0:02:30.4]} 15. Qc1 {[%clk 0:02:31.2]}
15... O-O-O {[%clk 0:02:30.1]} 16. Rb1 {[%clk 0:02:29.7]} 16... Rd7 {[%clk
0:02:26.8]} 17. Qb2 {[%clk 0:02:28.6]} 17... Rhd8 {[%clk 0:02:25.7]} 18. a4
{[%clk 0:02:27.8]} 18... Ne7 {[%clk 0:02:09.4]} 19. Bb4 {[%clk 0:02:23.6]} 19...
Nd5 {[%clk 0:01:52.4]} 20. Bd6 {[%clk 0:02:19.7]} 20... Nf4 {[%clk 0:01:27.7]}
21. Qb4 {[%clk 0:02:10.8]} 21... Qd5 {[%clk 0:01:21.9]} 22. f3 {[%clk
0:02:10.2]} 22... Nd3 {[%clk 0:01:19.7]} 23. Qc3 {[%clk 0:02:06.2]} 23... f6
{[%clk 0:00:48.6]} 24. Rb5 {[%clk 0:02:00.1]} 24... Qc6 {[%clk 0:00:48.3]} 25.
f4 {[%clk 0:01:43.1]} 25... g5 {[%clk 0:00:41.5]} 26. Qa5 {[%clk 0:01:22.8]}
26... b6 {[%clk 0:00:36.3]} 27. Qc3 {[%clk 0:01:12.4]} 27... gxf4 {[%clk
0:00:28.3]} 28. Qc2 {[%clk 0:00:38.4]} 28... fxe5 {[%clk 0:00:27.2]} 29. Bxe5
{[%clk 0:00:39.3]} 29... Nxe5 {[%clk 0:00:27.2]} 30. Rxe5 {[%clk 0:00:39.9]}
30... Rd2 {[%clk 0:00:26.8]} 31. Qe4 {[%clk 0:00:40.6]} 31... Qxe4 {[%clk
0:00:25.1]} 32. Rxe4 {[%clk 0:00:41.5]} 32... R8d4 {[%clk 0:00:21.9]} 33. Rxe6
{[%clk 0:00:40.5]} 33... Rxa2 {[%clk 0:00:18.7]} 34. Re7 {[%clk 0:00:36.2]}
34... Rdd2 {[%clk 0:00:17.8]} 35. Rc1 {[%clk 0:00:31.5]} 35... Rxg2+ {[%clk
0:00:17.2]} 36. Kh1 {[%clk 0:00:31.7]} 36... Rxh2+ {[%clk 0:00:17.3]} 37. Kg1
{[%clk 0:00:32.2]} 37... Rag2+ {[%clk 0:00:17.2]} 38. Kf1 {[%clk 0:00:33]} 38...
Rh1+ {[%clk 0:00:17.7]} 39. Kxg2 {[%clk 0:00:33]} 39... Rxc1 {[%clk 0:00:18.6]}
40. Rxa7 {[%clk 0:00:33]} 40... h5 {[%clk 0:00:18.2]} 41. Rf7 {[%clk 0:00:31.3]}
41... c3 {[%clk 0:00:18]} 42. Rxf4 {[%clk 0:00:31.2]} 42... Kb7 {[%clk
0:00:18.6]} 43. Rc4 {[%clk 0:00:27.8]} 43... c2 {[%clk 0:00:18.6]} 44. Kh2
{[%clk 0:00:26.1]} 44... Ka6 {[%clk 0:00:18.9]} 45. Kg2 {[%clk 0:00:26.1]} 45...
Ka5 {[%clk 0:00:19.4]} 46. Kh2 {[%clk 0:00:25.5]} 46... h4 {[%clk 0:00:16.2]}
47. Kg2 {[%clk 0:00:23.9]} 47... Rb1 {[%clk 0:00:12.4]} 48. Rxc2 {[%clk
0:00:23.4]} 48... Kxa4 {[%clk 0:00:12.9]} 49. Rc4+ {[%clk 0:00:23.2]} 49... Rb4
{[%clk 0:00:12.2]} 50. Rc8 {[%clk 0:00:23.2]} 50... b5 {[%clk 0:00:12.5]} 51.
Kf2 {[%clk 0:00:23.2]} 51... Rc4 {[%clk 0:00:11.8]} 52. Ra8+ {[%clk 0:00:22]}
52... Kb3 {[%clk 0:00:11.6]} 53. Ke2 {[%clk 0:00:21.9]} 53... b4 {[%clk
0:00:12]} 54. Rh8 {[%clk 0:00:21.5]} 54... Kb2 {[%clk 0:00:11]} 55. Kd2 {[%clk
0:00:21.7]} 55... b3 {[%clk 0:00:10.9]} 0-1

[Event "*** Titled Tuesday Blitz"]
[Site "Chess.com"]
[Date "2020.11.24"]
[Round "7"]
[White "ashookk"]
[Black "WildTricks"]
[Result "0-1"]
[WhiteElo "2257"]
[BlackElo "2461"]
[TimeControl "180+1"]
[EndTime "11:35:33 PST"]
[Termination "WildTricks won on time"]

1. Nf3 {[%clk 0:02:58.7]} 1... Nf6 {[%clk 0:02:58.9]} 2. c4 {[%clk 0:02:59.2]}
2... b6 {[%clk 0:02:56.5]} 3. Nc3 {[%clk 0:02:59.4]} 3... Bb7 {[%clk 0:02:56.2]}
4. d4 {[%clk 0:03:00.1]} 4... e6 {[%clk 0:02:52]} 5. a3 {[%clk 0:03:00.5]} 5...
d5 {[%clk 0:02:51]} 6. cxd5 {[%clk 0:03:01.4]} 6... Nxd5 {[%clk 0:02:51.6]} 7.
Bd2 {[%clk 0:03:01.6]} 7... Be7 {[%clk 0:02:51.4]} 8. Qc2 {[%clk 0:03:00.6]}
8... O-O {[%clk 0:02:50.8]} 9. e4 {[%clk 0:03:01.2]} 9... Nxc3 {[%clk
0:02:50.5]} 10. Bxc3 {[%clk 0:03:02.1]} 10... c5 {[%clk 0:02:48.9]} 11. dxc5
{[%clk 0:02:56.1]} 11... bxc5 {[%clk 0:02:46.3]} 12. Rd1 {[%clk 0:02:55.6]}
12... Qc8 {[%clk 0:02:45.2]} 13. Bc4 {[%clk 0:02:41.2]} 13... Nc6 {[%clk
0:02:32.6]} 14. O-O {[%clk 0:02:37.9]} 14... Ba6 {[%clk 0:02:26.2]} 15. Bxa6
{[%clk 0:02:30.1]} 15... Qxa6 {[%clk 0:02:27.1]} 16. Rd7 {[%clk 0:02:29.9]}
16... Rfd8 {[%clk 0:02:25.7]} 17. Rfd1 {[%clk 0:02:30.3]} 17... Rxd7 {[%clk
0:02:24.5]} 18. Rxd7 {[%clk 0:02:31.2]} 18... Rd8 {[%clk 0:02:22.5]} 19. Rxd8+
{[%clk 0:02:31]} 19... Bxd8 {[%clk 0:02:20]} 20. Qd1 {[%clk 0:01:32.6]} 20...
Qb7 {[%clk 0:01:59.8]} 21. Qd6 {[%clk 0:01:19.3]} 21... Be7 {[%clk 0:01:56.5]}
22. Qd3 {[%clk 0:00:58.7]} 22... Bf6 {[%clk 0:01:41.2]} 23. Bxf6 {[%clk
0:00:51.3]} 23... gxf6 {[%clk 0:01:40.7]} 24. Qc3 {[%clk 0:00:51.7]} 24... Qe7
{[%clk 0:00:45.8]} 25. h3 {[%clk 0:00:33.3]} 25... Kg7 {[%clk 0:00:44.3]} 26. b4
{[%clk 0:00:18.1]} 26... Qd6 {[%clk 0:00:15.7]} 27. Qxc5 {[%clk 0:00:15.9]}
27... Qxc5 {[%clk 0:00:09.2]} 28. bxc5 {[%clk 0:00:16.8]} 28... Kf8 {[%clk
0:00:09.4]} 29. Kf1 {[%clk 0:00:17.2]} 29... Ke7 {[%clk 0:00:09.6]} 30. Ke2
{[%clk 0:00:17.9]} 30... Na5 {[%clk 0:00:08]} 31. Kd3 {[%clk 0:00:17.5]} 31...
Kd7 {[%clk 0:00:08.3]} 32. Nd4 {[%clk 0:00:17.9]} 32... e5 {[%clk 0:00:04.6]}
33. Nf5 {[%clk 0:00:17.5]} 33... Kc6 {[%clk 0:00:04.5]} 34. Nd6 {[%clk
0:00:18.2]} 34... Kxc5 {[%clk 0:00:04.4]} 35. Nxf7 {[%clk 0:00:18.9]} 35... Nc4
{[%clk 0:00:04.5]} 36. a4 {[%clk 0:00:18.5]} 36... Nb2+ {[%clk 0:00:04.8]} 37.
Kc2 {[%clk 0:00:16.9]} 37... Nxa4 {[%clk 0:00:05.7]} 38. Nh6 {[%clk 0:00:16.2]}
38... Kc4 {[%clk 0:00:05.4]} 39. Nf5 {[%clk 0:00:15.9]} 39... Nc5 {[%clk
0:00:05]} 40. f3 {[%clk 0:00:15.9]} 40... a5 {[%clk 0:00:04.8]} 41. g4 {[%clk
0:00:16.2]} 41... a4 {[%clk 0:00:04.7]} 42. h4 {[%clk 0:00:16.4]} 42... a3
{[%clk 0:00:05]} 43. g5 {[%clk 0:00:16]} 43... fxg5 {[%clk 0:00:04.5]} 44. hxg5
{[%clk 0:00:16.9]} 44... Na4 {[%clk 0:00:04.5]} 45. Ne3+ {[%clk 0:00:16.2]}
45... Kb4 {[%clk 0:00:03.2]} 46. Nd5+ {[%clk 0:00:12]} 46... Kc4 {[%clk
0:00:03.3]} 47. Kb1 {[%clk 0:00:10.2]} 47... Kb3 {[%clk 0:00:02.9]} 48. Ka1
{[%clk 0:00:07.9]} 48... Nc5 {[%clk 0:00:02.4]} 49. Nf6 {[%clk 0:00:01]} 49...
a2 {[%clk 0:00:01.4]} 50. Nxh7 {[%clk 0:00:01.3]} 50... Ka3 {[%clk 0:00:01.4]}
0-1

[Event "*** Titled Tuesday Blitz"]
[Site "Chess.com"]
[Date "2020.11.24"]
[Round "7"]
[White "Omk124"]
[Black "TheCairnTerrier"]
[Result "0-1"]
[WhiteElo "2337"]
[BlackElo "2175"]
[TimeControl "180+1"]
[EndTime "11:35:33 PST"]
[Termination "TheCairnTerrier won by resignation"]

1. e4 {[%clk 0:03:00.9]} 1... c5 {[%clk 0:02:59.7]} 2. Nf3 {[%clk 0:03:00.7]}
2... e6 {[%clk 0:02:59.5]} 3. d4 {[%clk 0:03:00.7]} 3... cxd4 {[%clk 0:03:00.4]}
4. Nxd4 {[%clk 0:03:01.6]} 4... Nf6 {[%clk 0:03:00.7]} 5. Nc3 {[%clk 0:03:01.2]}
5... d6 {[%clk 0:03:00.9]} 6. Be2 {[%clk 0:03:01]} 6... Be7 {[%clk 0:03:00.4]}
7. O-O {[%clk 0:02:59.6]} 7... O-O {[%clk 0:02:59.8]} 8. a4 {[%clk 0:02:58.4]}
8... b6 {[%clk 0:02:52]} 9. f4 {[%clk 0:02:55.1]} 9... Bb7 {[%clk 0:02:52.3]}
10. e5 {[%clk 0:02:54.8]} 10... dxe5 {[%clk 0:02:48.1]} 11. fxe5 {[%clk
0:02:55.7]} 11... Nfd7 {[%clk 0:02:42.6]} 12. Bf4 {[%clk 0:02:55.3]} 12... Qc7
{[%clk 0:02:37.7]} 13. Ncb5 {[%clk 0:02:54.1]} 13... Qc5 {[%clk 0:02:24.4]} 14.
Bf3 {[%clk 0:02:43.4]} 14... Bxf3 {[%clk 0:01:59.9]} 15. Qxf3 {[%clk 0:02:44.3]}
15... Na6 {[%clk 0:01:50.8]} 16. Rae1 {[%clk 0:02:39.5]} 16... Nb4 {[%clk
0:01:24.9]} 17. c3 {[%clk 0:02:37.7]} 17... Nd5 {[%clk 0:01:24.9]} 18. Bc1
{[%clk 0:02:33.2]} 18... a6 {[%clk 0:01:25]} 19. Na3 {[%clk 0:02:04.4]} 19...
Qc7 {[%clk 0:01:18.8]} 20. Qg3 {[%clk 0:02:00.2]} 20... Bxa3 {[%clk 0:01:13.2]}
21. bxa3 {[%clk 0:02:01.1]} 21... Qxc3 {[%clk 0:01:11.1]} 22. Qg4 {[%clk
0:01:59]} 22... g6 {[%clk 0:00:43.4]} 23. Kh1 {[%clk 0:01:36]} 23... Rac8 {[%clk
0:00:41.9]} 24. Bh6 {[%clk 0:01:27.2]} 24... Rc4 {[%clk 0:00:36.5]} 25. Re4
{[%clk 0:00:36.5]} 25... Qd3 {[%clk 0:00:32.5]} 26. Rfe1 {[%clk 0:00:32.5]}
26... Nxe5 {[%clk 0:00:27.6]} 27. Rxe5 {[%clk 0:00:31]} 27... Rxd4 {[%clk
0:00:27.5]} 28. Qg5 {[%clk 0:00:27.1]} 28... Rc8 {[%clk 0:00:24.6]} 29. h3
{[%clk 0:00:19.6]} 29... f6 {[%clk 0:00:15.5]} 30. Qg4 {[%clk 0:00:19.9]} 30...
Rxg4 {[%clk 0:00:11.6]} 31. Rxe6 {[%clk 0:00:20.5]} 31... Rgc4 {[%clk
0:00:05.6]} 32. Re8+ {[%clk 0:00:20.6]} 32... Rxe8 {[%clk 0:00:06.1]} 33. Rxe8+
{[%clk 0:00:21.2]} 33... Kf7 {[%clk 0:00:06.6]} 34. Rf8+ {[%clk 0:00:22.1]}
34... Ke6 {[%clk 0:00:06.4]} 35. Re8+ {[%clk 0:00:23]} 35... Kf5 {[%clk
0:00:06.6]} 36. Re1 {[%clk 0:00:19.3]} 36... Qxa3 {[%clk 0:00:05.4]} 37. Kh2
{[%clk 0:00:16]} 37... Qc3 {[%clk 0:00:04.8]} 38. Re2 {[%clk 0:00:15.9]} 38...
Qe5+ {[%clk 0:00:05.2]} 39. Rxe5+ {[%clk 0:00:16.1]} 39... Kxe5 {[%clk
0:00:06.1]} 40. g4 {[%clk 0:00:17]} 40... Rxa4 {[%clk 0:00:06.4]} 41. Kg3 {[%clk
0:00:16.7]} 41... f5 {[%clk 0:00:06.8]} 42. Kh4 {[%clk 0:00:17.6]} 42... f4
{[%clk 0:00:07]} 43. Bg7+ {[%clk 0:00:16.9]} 43... Ke4 {[%clk 0:00:06.7]} 44. g5
{[%clk 0:00:17.8]} 44... f3 {[%clk 0:00:06.9]} 45. Kg4 {[%clk 0:00:17.3]} 45...
Ke3+ {[%clk 0:00:07.2]} 46. Kg3 {[%clk 0:00:17.3]} 46... Ke2 {[%clk 0:00:07.3]}
47. Bd4 {[%clk 0:00:18.2]} 47... Rxd4 {[%clk 0:00:06.5]} 48. Kh2 {[%clk
0:00:17.7]} 48... f2 {[%clk 0:00:07.4]} 49. h4 {[%clk 0:00:18.6]} 49... f1=Q
{[%clk 0:00:07.4]} 50. h5 {[%clk 0:00:19.5]} 50... Rh4+ {[%clk 0:00:07.4]} 51.
Kg3 {[%clk 0:00:19.8]} 51... Qf4+ {[%clk 0:00:08.2]} 52. Kg2 {[%clk 0:00:20]}
52... Rh2+ {[%clk 0:00:09]} 0-1

[Event "*** Titled Tuesday Blitz"]
[Site "Chess.com"]
[Date "2020.11.24"]
[Round "7"]
[White "zurzan"]
[Black "svilson23"]
[Result "0-1"]
[WhiteElo "2075"]
[BlackElo "2248"]
[TimeControl "180+1"]
[EndTime "11:35:33 PST"]
[Termination "svilson23 won by resignation"]

1. f4 {[%clk 0:03:00.9]} 1... d5 {[%clk 0:02:58.9]} 2. Nf3 {[%clk 0:03:01]} 2...
c5 {[%clk 0:02:58.1]} 3. g3 {[%clk 0:03:01.2]} 3... Nc6 {[%clk 0:02:58]} 4. Bg2
{[%clk 0:03:02.1]} 4... g6 {[%clk 0:02:54.9]} 5. O-O {[%clk 0:03:01.7]} 5... Bg7
{[%clk 0:02:55.1]} 6. d3 {[%clk 0:03:02.6]} 6... e6 {[%clk 0:02:52]} 7. c3
{[%clk 0:03:03.5]} 7... d4 {[%clk 0:02:50.5]} 8. e4 {[%clk 0:02:57]} 8... dxe3
{[%clk 0:02:48.2]} 9. Bxe3 {[%clk 0:02:57.1]} 9... b6 {[%clk 0:02:46.7]} 10. d4
{[%clk 0:02:37.6]} 10... Nge7 {[%clk 0:02:40.8]} 11. dxc5 {[%clk 0:02:34.2]}
11... Ba6 {[%clk 0:02:37.7]} 12. Re1 {[%clk 0:02:25]} 12... O-O {[%clk
0:02:33.9]} 13. Qxd8 {[%clk 0:02:22.6]} 13... Rfxd8 {[%clk 0:02:32.7]} 14. cxb6
{[%clk 0:02:22.6]} 14... Nd5 {[%clk 0:02:21.1]} 15. Bf2 {[%clk 0:02:15.1]} 15...
axb6 {[%clk 0:02:19.6]} 16. Nbd2 {[%clk 0:02:10.4]} 16... Rab8 {[%clk
0:02:04.3]} 17. Rac1 {[%clk 0:02:03.4]} 17... b5 {[%clk 0:01:59.3]} 18. a3
{[%clk 0:02:00.7]} 18... Na5 {[%clk 0:01:58.4]} 19. h3 {[%clk 0:01:58.3]} 19...
Nc4 {[%clk 0:01:58.4]} 20. Nxc4 {[%clk 0:01:57.5]} 20... bxc4 {[%clk 0:01:59.3]}
21. Rc2 {[%clk 0:01:48.5]} 21... Rd7 {[%clk 0:01:50.5]} 22. Nd4 {[%clk
0:01:43.1]} 22... Rdb7 {[%clk 0:01:51]} 23. Ree2 {[%clk 0:01:31.9]} 23... Rc7
{[%clk 0:01:41.7]} 24. Red2 {[%clk 0:01:22.8]} 24... Bb7 {[%clk 0:01:41.2]} 25.
Nb5 {[%clk 0:01:20.1]} 25... Rd7 {[%clk 0:01:37.6]} 26. Bf1 {[%clk 0:01:13.1]}
26... Ba6 {[%clk 0:01:05.9]} 27. Nd4 {[%clk 0:01:12.6]} 27... Nf6 {[%clk
0:01:00.7]} 28. Kh2 {[%clk 0:01:09.4]} 28... Ne4 {[%clk 0:00:59.2]} 29. Re2
{[%clk 0:01:04.4]} 29... Nxf2 {[%clk 0:00:58.8]} 30. Rxf2 {[%clk 0:01:04.3]}
30... Bxd4 {[%clk 0:00:59.4]} 31. cxd4 {[%clk 0:01:04.4]} 31... Rxd4 {[%clk
0:01:00.3]} 32. Rfd2 {[%clk 0:00:55.8]} 32... Rxd2+ {[%clk 0:00:55.5]} 33. Rxd2
{[%clk 0:00:56.7]} 33... c3 {[%clk 0:00:55.5]} 34. bxc3 {[%clk 0:00:56.3]} 34...
Bxf1 {[%clk 0:00:54.8]} 35. Rd4 {[%clk 0:00:47.1]} 35... Rc8 {[%clk 0:00:52]}
36. Kg1 {[%clk 0:00:39.1]} 36... Bc4 {[%clk 0:00:47.6]} 37. Kf2 {[%clk
0:00:38.4]} 37... Kf8 {[%clk 0:00:47.6]} 38. Ke3 {[%clk 0:00:38.5]} 38... Ke7
{[%clk 0:00:47.6]} 39. Kd2 {[%clk 0:00:38.5]} 39... Bd5 {[%clk 0:00:44.9]} 40.
h4 {[%clk 0:00:38.4]} 40... Kd6 {[%clk 0:00:42.7]} 41. Kc2 {[%clk 0:00:36.2]}
41... Kc5 {[%clk 0:00:42.6]} 42. Kb2 {[%clk 0:00:36.1]} 42... Rb8+ {[%clk
0:00:41.3]} 43. Kc2 {[%clk 0:00:31.6]} 43... Ra8 {[%clk 0:00:41.5]} 44. Kb2
{[%clk 0:00:31.3]} 44... f6 {[%clk 0:00:37.2]} 45. g4 {[%clk 0:00:30]} 45... e5
{[%clk 0:00:35.2]} 46. fxe5 {[%clk 0:00:30.1]} 46... fxe5 {[%clk 0:00:36.1]} 47.
Rb4 {[%clk 0:00:29.7]} 47... e4 {[%clk 0:00:31.6]} 48. a4 {[%clk 0:00:28.1]}
48... Ra7 {[%clk 0:00:25.6]} 49. Kc2 {[%clk 0:00:26.6]} 49... e3 {[%clk
0:00:24.4]} 50. Kd1 {[%clk 0:00:25.8]} 50... Bf3+ {[%clk 0:00:20.1]} 51. Ke1
{[%clk 0:00:25.5]} 51... Rd7 {[%clk 0:00:19.4]} 52. Rd4 {[%clk 0:00:22.4]} 52...
Rxd4 {[%clk 0:00:18.8]} 53. cxd4+ {[%clk 0:00:23.3]} 53... Kxd4 {[%clk
0:00:19.4]} 54. a5 {[%clk 0:00:23.2]} 54... Bb7 {[%clk 0:00:19.1]} 55. h5 {[%clk
0:00:22.7]} 55... Ke4 {[%clk 0:00:19.6]} 56. hxg6 {[%clk 0:00:21.7]} 56... hxg6
{[%clk 0:00:20.5]} 57. g5 {[%clk 0:00:21.8]} 57... Kf4 {[%clk 0:00:20.7]} 58.
Ke2 {[%clk 0:00:21.8]} 58... Ba6+ {[%clk 0:00:21.2]} 59. Ke1 {[%clk 0:00:21.9]}
59... Kxg5 {[%clk 0:00:21.7]} 60. Kd1 {[%clk 0:00:19.7]} 60... Kf4 {[%clk
0:00:22.3]} 61. Ke1 {[%clk 0:00:20]} 61... g5 {[%clk 0:00:23]} 0-1

[Event "*** Titled Tuesday Blitz"]
[Site "Chess.com"]
[Date "2020.11.24"]
[Round "7"]
[White "Rainmond"]
[Black "exoticprincess"]
[Result "0-1"]
[WhiteElo "2777"]
[BlackElo "2906"]
[TimeControl "180+1"]
[EndTime "11:35:35 PST"]
[Termination "exoticprincess won by checkmate"]

1. d4 {[%clk 0:03:00.9]} 1... d5 {[%clk 0:02:58.9]} 2. Nf3 {[%clk 0:03:00.8]}
2... c6 {[%clk 0:02:59.8]} 3. Bf4 {[%clk 0:02:58.3]} 3... Nf6 {[%clk 0:03:00.2]}
4. e3 {[%clk 0:02:58.2]} 4... Bg4 {[%clk 0:03:00.1]} 5. c4 {[%clk 0:02:57.3]}
5... e6 {[%clk 0:02:58.3]} 6. Nc3 {[%clk 0:02:53.7]} 6... Nbd7 {[%clk
0:02:57.6]} 7. Qb3 {[%clk 0:02:53.3]} 7... Qc8 {[%clk 0:02:57]} 8. Nh4 {[%clk
0:02:44.3]} 8... Be7 {[%clk 0:02:52.5]} 9. h3 {[%clk 0:02:44.2]} 9... Bh5 {[%clk
0:02:52.3]} 10. g4 {[%clk 0:02:44.4]} 10... Bg6 {[%clk 0:02:52.7]} 11. Nxg6
{[%clk 0:02:42.5]} 11... hxg6 {[%clk 0:02:53.6]} 12. Bg2 {[%clk 0:02:43]} 12...
Nb6 {[%clk 0:02:47.3]} 13. cxd5 {[%clk 0:02:42.1]} 13... exd5 {[%clk 0:02:43.7]}
14. Rc1 {[%clk 0:02:39.9]} 14... Qe6 {[%clk 0:02:40.5]} 15. Na4 {[%clk
0:02:28.2]} 15... Nxa4 {[%clk 0:02:29]} 16. Qxa4 {[%clk 0:02:28.2]} 16... O-O
{[%clk 0:02:28.8]} 17. Qb3 {[%clk 0:02:27.6]} 17... Qd7 {[%clk 0:02:21.7]} 18.
Be5 {[%clk 0:02:27.4]} 18... a5 {[%clk 0:02:20.8]} 19. O-O {[%clk 0:02:23.1]}
19... a4 {[%clk 0:02:20.9]} 20. Qd3 {[%clk 0:02:23.1]} 20... Rfd8 {[%clk
0:02:11.8]} 21. f4 {[%clk 0:02:20.6]} 21... Ne8 {[%clk 0:01:57.4]} 22. g5 {[%clk
0:01:57.3]} 22... Nd6 {[%clk 0:01:37.1]} 23. Kh2 {[%clk 0:01:55.6]} 23... Nf5
{[%clk 0:01:31.7]} 24. Bf3 {[%clk 0:01:47.8]} 24... Ra5 {[%clk 0:01:18.4]} 25.
Bg4 {[%clk 0:01:45.9]} 25... Rb5 {[%clk 0:01:17.9]} 26. Rc2 {[%clk 0:01:46.2]}
26... f6 {[%clk 0:01:14.2]} 27. gxf6 {[%clk 0:01:43.8]} 27... gxf6 {[%clk
0:01:15.1]} 28. Rg1 {[%clk 0:01:44]} 28... Kf7 {[%clk 0:01:15.2]} 29. Rf2 {[%clk
0:01:41.1]} 29... Qe6 {[%clk 0:01:08.2]} 30. h4 {[%clk 0:01:38.2]} 30... Rh8
{[%clk 0:01:07]} 31. h5 {[%clk 0:01:38.4]} 31... Ke8 {[%clk 0:01:03.3]} 32. Rf3
{[%clk 0:01:37.3]} 32... Rxb2+ {[%clk 0:01:00.9]} 33. Kh1 {[%clk 0:01:35.3]}
33... fxe5 {[%clk 0:00:59.2]} 34. fxe5 {[%clk 0:01:33]} 34... Rxa2 {[%clk
0:00:58.3]} 35. Rh3 {[%clk 0:01:32.5]} 35... Ra3 {[%clk 0:00:53.3]} 36. Qb1
{[%clk 0:01:20.9]} 36... Rb3 {[%clk 0:00:52.9]} 37. Qe1 {[%clk 0:01:18.3]} 37...
a3 {[%clk 0:00:45.6]} 38. hxg6 {[%clk 0:01:13.7]} 38... Rg8 {[%clk 0:00:44.9]}
39. e4 {[%clk 0:00:58.6]} 39... Rxh3+ {[%clk 0:00:42.7]} 40. Bxh3 {[%clk
0:00:59.5]} 40... Rh8 {[%clk 0:00:42.1]} 41. Kh2 {[%clk 0:00:35.7]} 41... Ng7
{[%clk 0:00:40.8]} 42. Rg3 {[%clk 0:00:29.2]} 42... dxe4 {[%clk 0:00:36.7]} 43.
Qa5 {[%clk 0:00:26.6]} 43... Kd7 {[%clk 0:00:29.9]} 44. Qb6 {[%clk 0:00:21.5]}
44... Kc8 {[%clk 0:00:27.9]} 45. Qa5 {[%clk 0:00:16.1]} 45... Kd7 {[%clk
0:00:22.6]} 46. Qb6 {[%clk 0:00:15.9]} 46... Bd8 {[%clk 0:00:22.2]} 47. Qxb7+
{[%clk 0:00:14.6]} 47... Bc7 {[%clk 0:00:22.6]} 48. Kg2 {[%clk 0:00:12.9]} 48...
Rxh3 {[%clk 0:00:21.1]} 49. Rxh3 {[%clk 0:00:13.8]} 49... Qg4+ {[%clk
0:00:20.4]} 50. Rg3 {[%clk 0:00:13.8]} 50... Qe2+ {[%clk 0:00:20.6]} 51. Kh3
{[%clk 0:00:14.1]} 51... a2 {[%clk 0:00:21.2]} 52. d5 {[%clk 0:00:13.2]} 52...
Qh5+ {[%clk 0:00:19.5]} 53. Kg2 {[%clk 0:00:13.2]} 53... Qe2+ {[%clk 0:00:20.4]}
54. Kh3 {[%clk 0:00:12.8]} 54... a1=Q {[%clk 0:00:20.2]} 55. Qxc6+ {[%clk
0:00:12.6]} 55... Kc8 {[%clk 0:00:20.3]} 56. d6 {[%clk 0:00:08.8]} 56... Qh1#
{[%clk 0:00:18.7]} 0-1

[Event "*** Titled Tuesday Blitz"]
[Site "Chess.com"]
[Date "2020.11.24"]
[Round "7"]
[White "Nitzan_Steinberg"]
[Black "AlexeiShirov"]
[Result "1-0"]
[WhiteElo "2886"]
[BlackElo "2840"]
[TimeControl "180+1"]
[EndTime "11:35:37 PST"]
[Termination "Nitzan_Steinberg won by resignation"]

1. e4 {[%clk 0:03:00.9]} 1... e5 {[%clk 0:02:59.2]} 2. Nf3 {[%clk 0:03:01.2]}
2... Nc6 {[%clk 0:02:59]} 3. Bb5 {[%clk 0:03:01.5]} 3... a6 {[%clk 0:02:59]} 4.
Ba4 {[%clk 0:03:02]} 4... Nf6 {[%clk 0:02:59.1]} 5. O-O {[%clk 0:03:02.6]} 5...
b5 {[%clk 0:02:58.6]} 6. Bb3 {[%clk 0:03:02.6]} 6... Bc5 {[%clk 0:02:58.4]} 7.
a4 {[%clk 0:03:01.1]} 7... Rb8 {[%clk 0:02:57.9]} 8. c3 {[%clk 0:02:57.2]} 8...
d6 {[%clk 0:02:57.7]} 9. d4 {[%clk 0:02:55.8]} 9... Bb6 {[%clk 0:02:57.6]} 10.
a5 {[%clk 0:02:51.7]} 10... Ba7 {[%clk 0:02:57.4]} 11. h3 {[%clk 0:02:38.8]}
11... O-O {[%clk 0:02:57]} 12. Be3 {[%clk 0:02:38.1]} 12... Re8 {[%clk
0:02:51.7]} 13. Nbd2 {[%clk 0:02:35.5]} 13... exd4 {[%clk 0:02:35.6]} 14. cxd4
{[%clk 0:02:35.4]} 14... Nb4 {[%clk 0:02:34.6]} 15. Qb1 {[%clk 0:02:15.4]} 15...
c5 {[%clk 0:02:26.9]} 16. dxc5 {[%clk 0:01:59.5]} 16... Bxc5 {[%clk 0:02:24.1]}
17. Bg5 {[%clk 0:01:45.4]} 17... h6 {[%clk 0:02:19.2]} 18. Bh4 {[%clk
0:01:42.9]} 18... Bb7 {[%clk 0:02:11.4]} 19. Re1 {[%clk 0:01:40.3]} 19... Nc6
{[%clk 0:02:00.2]} 20. Qa2 {[%clk 0:01:36.5]} 20... Qe7 {[%clk 0:01:52.2]} 21.
Rad1 {[%clk 0:01:34.4]} 21... Ne5 {[%clk 0:01:44.6]} 22. Nxe5 {[%clk 0:01:23.3]}
22... dxe5 {[%clk 0:01:43]} 23. Bd5 {[%clk 0:01:19.5]} 23... g5 {[%clk
0:01:34.8]} 24. Bxb7 {[%clk 0:01:16.4]} 24... Qxb7 {[%clk 0:01:29.5]} 25. Bg3
{[%clk 0:01:14.9]} 25... Bb4 {[%clk 0:01:29.5]} 26. h4 {[%clk 0:00:44]} 26...
Rbd8 {[%clk 0:01:25]} 27. b3 {[%clk 0:00:43.3]} 27... Rxd2 {[%clk 0:01:13.1]}
28. Rxd2 {[%clk 0:00:43.3]} 28... Nxe4 {[%clk 0:01:12.3]} 29. Rd7 {[%clk
0:00:36]} 29... Qxd7 {[%clk 0:01:08.6]} 30. Rxe4 {[%clk 0:00:36.5]} 30... Qd1+
{[%clk 0:01:05.8]} 31. Kh2 {[%clk 0:00:36.1]} 31... Bd6 {[%clk 0:01:04.6]} 32.
b4 {[%clk 0:00:32.8]} 32... Kg7 {[%clk 0:00:53.5]} 33. Qb2 {[%clk 0:00:28.8]}
33... f6 {[%clk 0:00:51.8]} 34. Qc3 {[%clk 0:00:27.7]} 34... Qd5 {[%clk
0:00:42.3]} 35. Re2 {[%clk 0:00:27.9]} 35... Qc4 {[%clk 0:00:37.7]} 36. Qf3
{[%clk 0:00:27.8]} 36... gxh4 {[%clk 0:00:35.4]} 37. Re4 {[%clk 0:00:25.2]}
37... Qe6 {[%clk 0:00:28.2]} 38. Rg4+ {[%clk 0:00:23.7]} 38... Kh7 {[%clk
0:00:25.2]} 39. Rxh4 {[%clk 0:00:22.3]} 39... f5 {[%clk 0:00:23.2]} 40. Rh3
{[%clk 0:00:09.7]} 40... f4 {[%clk 0:00:22.1]} 41. Bh4 {[%clk 0:00:09.9]} 41...
e4 {[%clk 0:00:22.2]} 42. Qh5 {[%clk 0:00:09.7]} 42... Qg6 {[%clk 0:00:21.3]}
43. Qd5 {[%clk 0:00:08.5]} 43... f3+ {[%clk 0:00:20.4]} 44. g3 {[%clk
0:00:08.8]} 44... e3 {[%clk 0:00:20.2]} 45. Bg5 {[%clk 0:00:07.3]} 45... e2
{[%clk 0:00:18.2]} 46. Bxh6 {[%clk 0:00:03.9]} 46... Qxh6 {[%clk 0:00:10.7]} 47.
Qf7+ {[%clk 0:00:03.4]} 1-0